Cogmind - Beta 15 @@@ ROGUE MODE // 2025.08.18 @ 18:15:53 Player: the Result: Destroyed by S-10 Pest with Light Assault Rifle Performance ------------- Evolutions (0) 0 Regions Visited (2) 400 Robots Destroyed (39) 195 Value Destroyed (870) 870 Prototype IDs (11) 220 Alien Tech Used (0) 0 Bonus (-76) -76 TOTAL SCORE: 1609 Bonus ------- Friendly Fire -76 Cogmind --------- Core Integrity 0/250 Matter 196/300 Energy 226/250 System Corruption 2% Temperature Cool (0) Movement Treading (160) Location -10/Subcaves Parts ------- > --- POWER (1) -------- Ion Engine > --- PROPULSION (2) --- Light Treads (fused) Improved Treads > --- UTILITY (2) ------ Large Storage Unit Seismic Detector > --- WEAPON (2) ------- Subdweller Beam Cannon Slug Cannon > --- INVENTORY (15) --- Improved Treads Improved Treads Improved Treads Arachnoskeleton Seismic Detector Scrap Shield Tractor Beam Heavy Assault Rifle Heavy Assault Rifle Heavy Assault Rifle Heavy Assault Rifle Maul Peak State ------------ > --- POWER ------------ Ion Engine > --- PROPULSION ------- Light Treads Improved Treads > --- UTILITY ---------- Large Storage Unit Seismic Detector > --- WEAPON ----------- Subdweller Beam Cannon Slug Cannon > --- INVENTORY -------- Improved Treads Improved Treads Improved Treads Arachnoskeleton Seismic Detector Scrap Shield Tractor Beam Heavy Assault Rifle Heavy Assault Rifle Heavy Assault Rifle Heavy Assault Rifle Maul [Rating: 16] Favorites ----------- Power Ion Engine Engine Ion Engine Propulsion Light Treads Treads Light Treads Leg Aluminum Leg Utility Seismic Detector Device Seismic Detector Storage Large Storage Unit Weapon EM Shotgun Energy Gun EM Shotgun Energy Cannon Subdweller Beam Cannon Ballistic Gun Shotgun Ballistic Cannon Slug Cannon Launcher Grenade Launcher Impact Weapon Maul Build | -11 -10 -10 ------- Run | Yrd Mat Sub Slots Evolved . | . . . Power . | . . . Propulsion . | . . . Utility . | . . . Weapon . | . . . Parts Attached 30 | 7 13 10 Power 3 | 1 1 1 Engine 3 | 1 1 1 Core . | . . . Reactor . | . . . Propulsion 8 | 2 4 2 Treads 6 | . 4 2 Leg 2 | 2 . . Wheel . | . . . Hover . | . . . Flight . | . . . Utility 6 | 2 3 1 Device 3 | 1 1 1 Storage 3 | 1 2 . Processor . | . . . Hackware . | . . . Protection . | . . . Artifact . | . . . Weapon 13 | 2 5 6 Energy Gun 6 | 2 2 2 Energy Cannon 2 | . . 2 Ballistic Gun 2 | . 2 . Ballistic Cannon 1 | . . 1 Launcher 1 | . 1 . Special Weapon . | . . . Impact Weapon 1 | . . 1 Slashing Weapon . | . . . Piercing Weapon . | . . . Special Melee Weapon . | . . . Unidentified Prototypes . | . . . Parts Lost 3 | . . 3 Power . | . . . Propulsion 1 | . . 1 Utility . | . . . Weapon 2 | . . 2 Highest Loss Streak 1 | . . 1 To Critical Strikes . | . . . Average Backups 13 | 4 13 13 Power . | . . . Propulsion 3 | 1 3 3 Utility 2 | . 2 3 Weapon 5 | . 6 5 Tool/Special . | . . . Unused Backups 20 | . 8 12 Power . | . . . Propulsion 4 | . . 4 Utility 4 | . 1 3 Weapon 12 | . 7 5 Tool/Special . | . . . Average Slot Usage (%) 98 | . 99 98 Engine 13 | . 13 14 Treads 26 | . 24 27 Leg 1 | . 3 . Device 14 | . 14 14 Storage 14 | . 14 14 Energy Gun 17 | . 21 14 Energy Cannon 6 | . . 9 Ballistic Gun 1 | . 5 . Ballistic Cannon 1 | . . 2 Peak Build Rating 16 | 7 11 16 Average Rating 11 | 5 10 11 On Entrance 6 | . 7 11 Naked Turns . | . . . Heaviest Build 42 | 13 32 42 Greatest Support 43 | 20 40 43 Greatest Overweight (x) 1 | . 1 1 Average Overweight (x) . | . . . Largest Inventory Capacity 15 | 8 15 15 Average Capacity 14 | 7 14 15 Most Carried 15 | 6 15 15 Average Carried 14 | 4 13 14 Final Capacity 15 | 8 15 15 Final Carried 15 | 6 15 15 Class Distribution -------------------- 100% | Mutant Dominant Class ---------------- Mutant | -10/Materials Mutant | -10/Subcaves Resources | -11 -10 -10 ----------- Run | Yrd Mat Sub Matter Collected 788 | 270 273 245 Remotely . | . . . Salvage Created 1243 | 161 687 395 Parts 79 | 8 45 26 Haulers Intercepted 1 | . 1 . Recyclers Shooed . | . . . Parts Field Recycled . | . . . Retrieved Matter . | . . . Parts Self-Destructed 10 | . . 10 Prevented 3 | . . 3 Kills | -11 -10 -10 ------- Run | Yrd Mat Sub Combat Hostiles Destroyed 25 | . 15 10 Guns 15 | . 10 5 Cannons 5 | . . 5 AOE 4 | . 4 . Classes Destroyed 12 | 2 7 3 Worker 2 | . 2 . Builder 1 | . 1 . Tunneler 4 | 3 1 . Hauler 1 | . 1 . Recycler 1 | 1 . . Operator 2 | . 2 . Watcher 3 | . 3 . Swarmer 8 | . 6 2 Grunt 9 | . 9 . Sentry 1 | . . 1 Artisan 2 | . . 2 Subdweller 7 | . . 7 Best Kill Streak 10 | 3 10 2 Combat Bots Only 4 | . 4 2 Max Kills in Single Turn 2 | 1 2 1 Gunslinging . | . . . Exploded 2 | . 2 . Melee . | . . . Uniques/NPCs Destroyed . | . . . Combat | -11 -10 -10 -------- Run | Yrd Mat Sub Hostile Shots Fired 98 | . 43 55 Missed 27 | . 11 16 Hits 71 | . 32 39 Projectile 71 | . 32 39 Critical Strikes 2 | . 1 1 Damage Taken 1118 | . 376 742 Core 259 | . 49 210 Absorbed by Shields . | . . . Core Remaining (%) 100 | 100 . . Volleys Fired 136 | 12 46 78 Largest 2 | 2 2 2 Hottest 160 | 80 90 160 Shots Fired 243 | 24 89 130 Gun 143 | 24 86 33 Cannon 97 | . . 97 Launcher 3 | . 3 . Special . | . . . Kinetic 26 | . 6 20 Thermal 115 | 24 14 77 Explosive 3 | . 3 . Electromagnetic 99 | . 66 33 Robot Hit Streak 15 | 9 8 15 Robot Miss Streak 4 | 3 4 3 Penetration Max . | . . . Secondary Targets 3 | . 3 . Max Gunslinging Chain 1 | . 1 . Shots Hit Robots 138 | 17 62 59 Core Hits 69 | 5 39 25 Critical Kills 2 | . 1 1 Critical Parts Destroyed 2 | . . 2 Critical Strikes 4 | . 1 3 Destroy 4 | . 1 3 Melee Attacks 4 | . . 4 Impact 4 | . . 4 Slashing . | . . . Piercing . | . . . Sneak Attacks . | . . . Combat Hostiles . | . . . Follow-up Attacks . | . . . Damage Inflicted 2674 | 194 1275 1205 Guns 1502 | 194 927 381 Cannons 824 | . . 824 Explosions 345 | . 345 . Melee . | . . . Ramming 3 | . 3 . Kinetic 393 | . 115 278 Thermal 948 | 194 208 546 Explosive 221 | . 221 . Electromagnetic 1109 | . 728 381 Impact . | . . . Slashing . | . . . Piercing . | . . . Highest Corruption 2 | . 2 2 Average Corruption 2 | . 2 2 Corruption Purged . | . . . Corruption Blocked . | . . . Effects 38 | . 7 31 Message Errors 7 | . 1 6 Matter Fused 14 | . 3 11 Heat Flow Errors 4 | . 2 2 Energy Discharges 5 | . 1 4 Parts Fused 1 | . . 1 Data Loss (minor) 3 | . . 3 Misfires 3 | . . 3 Weapon Failures 1 | . . 1 Overload Shots . | . . . Overflow Damage 51 | . 10 41 Projectiles 41 | . . 41 Explosions 10 | . 10 . Melee . | . . . Knockbacks 4 | . . 4 Impact . | . . . Kinetic 4 | . . 4 Secondary . | . . . Self-Inflicted Damage 23 | . 23 . Shots 1 | . 1 . Rammed 2 | . 1 1 Targets Rammed 3 | . 2 1 Kicked . | . . . Crushed 1 | . 1 . Highest Temperature 309 | 108 309 297 Average Temperature 80 | 37 81 99 Received Heat Transfer 255 | . 156 99 Siege Activations . | . . . Martial Activations . | . . . Shielding Activations . | . . . Robots Disrupted . | . . . Combat Hostiles . | . . . Robots Corrupted 2 | . 2 . Combat Hostiles 1 | . 1 . Parts Fried 6 | . 3 3 Impact Corruptions . | . . . Robots Melted . | . . . Combat Hostiles . | . . . Parts Melted 1 | 1 . . Heat Transferred 1565 | 425 400 740 Parts Sabotaged . | . . . Parts Stolen . | . . . Parts Stripped . | . . . Power Chain Reactions 3 | . 3 . Alert | -11 -10 -10 ------- Run | Yrd Mat Sub Maximum Alert Level . | . . . Low Security (%) 100 | 100 100 . Level 1 . | . . . Level 2 . | . . . Level 3 . | . . . Level 4 . | . . . Level 5 . | . . . High Security . | . . . Max Security . | . . . Peak Influence 175 | 10 175 . Initial . | . . . Average 37 | . 41 . Influence Increases 573 | 20 448 105 Destroy 0b10 Robot/C 360 | . 300 60 Destroy 0b10 Robot/NC 70 | 20 50 . Destroy Leader 58 | . 58 . Successful Hack 4 | . 4 . Disable Machine 15 | . 15 . Destroy Structure 21 | . 21 . Lose Combat Pursuer 45 | . . 45 Influence Decreases 490 | 20 313 157 Entered New Map 66 | . . 66 Time Decay 424 | 20 313 91 Squads Dispatched 3 | . 3 . Investigation . | . . . Extermination . | . . . Reinforcement 3 | . 3 . Assault . | . . . Garrison . | . . . Intercept . | . . . Searches Triggered . | . . . Construction Impeded . | . . . Haulers Reinforced . | . . . Active Scanning Responses . | . . . Cargo Convoy Interrupts . | . . . Stealth | -11 -10 -10 --------- Run | Yrd Mat Sub Distress Signals 1 | . 1 . Communications Jammed . | . . . Distress Signals . | . . . Times Spotted 35 | . 23 12 Peak Tracking Total 5 | . 5 5 Tactical Retreats 1 | . . 1 Traps | -11 -10 -10 ------- Run | Yrd Mat Sub Traps Triggered 5 | . 3 2 Indirectly . | . . . Trap Hack Attempts . | . . . Triggered . | . . . Disarmed . | . . . Reprogrammed . | . . . Reused . | . . . Traps Extracted . | . . . Installed . | . . . Triggered . | . . . Most Traps Carried 1 | . . 1 Machines | -11 -10 -10 ---------- Run | Yrd Mat Sub Machines Disabled 2 | . 1 1 Max in Single Turn 1 | . 1 1 Machines Repaired . | . . . Machines Dismantled . | . . . Machines Sabotaged . | . . . Overloaded Fab Kills . | . . . Hacking | -11 -10 -10 --------- Run | Yrd Mat Sub Machines Accessed 7 | . 4 3 Terminals 4 | . 4 . Fabricators . | . . . Repair Stations . | . . . Recycling Units . | . . . Scanalyzers . | . . . Garrison Access . | . . . Total Hacks 19 | . 12 7 Successful 12 | . 5 7 Failed 6 | . 6 . Catastrophic 2 | . 2 . Database Lockouts 1 | . 1 . Manual 3 | . 3 . Terminals 12 | . 12 . Fabricators . | . . . Repair Stations . | . . . Recycling Units . | . . . Scanalyzers . | . . . Garrison Access . | . . . Terminal Hacks 12 | . 5 7 Record 5 | . . 5 Robot Analysis 1 | . 1 . Open Door 1 | . . 1 Locate Traps 1 | . 1 . Recall Investigation 1 | . 1 . Hauler Manifests 1 | . 1 . Zone Layout 1 | . 1 . Proto ID Catalog 1 | . . 1 Fabricator Hacks . | . . . Repair Station Hacks . | . . . Recycling Unit Hacks . | . . . Scanalyzer . | . . . Garrison Access Hacks . | . . . Unauthorized Hacks . | . . . Terminals . | . . . Fabricators . | . . . Repair Stations . | . . . Recycling Units . | . . . Scanalyzers . | . . . Garrison Access . | . . . Data Cores Recovered . | . . . Used . | . . . Hacking Detections 4 | . 4 . Full Trace Events 1 | . 1 . Feedback Events . | . . . Feedback Blocked . | . . . Robot Schematics Acquired . | . . . Robots Built . | . . . Authchips . | . . . Time . | . . . Total Robot Build Rating . | . . . Part Schematics Acquired . | . . . Parts Built . | . . . Authchips . | . . . Time . | . . . Total Part Build Rating . | . . . Parts Repaired . | . . . Time . | . . . Parts Recycled . | . . . Recycled Matter . | . . . Retrieved Matter . | . . . Retrieved Components . | . . . Parts Scanalyzed . | . . . Part Schematics Acquired . | . . . Parts Damaged . | . . . Bothacking | -11 -10 -10 ------------ Run | Yrd Mat Sub Used RIF Installer . | . . . Robots Hacked . | . . . Non-combat . | . . . Combat . | . . . Robot Hacks Applied . | . . . Relay Couplers Released . | . . . Fabnet Peak Effective % . | . . . Robots Rewired . | . . . Allies Hacked . | . . . Hacks Repelled . | . . . Allies | -11 -10 -10 -------- Run | Yrd Mat Sub Total Allies . | . . . Largest Group . | . . . Highest-Rated Group . | . . . Highest-Rated Ally . | . . . Total Orders . | . . . Ally Attacks . | . . . Total Damage . | . . . Kills . | . . . Allies Corrupted . | . . . Allies Melted . | . . . Intel | -11 -10 -10 ------- Run | Yrd Mat Sub Active Infowar (turns) 3560 | 54 1210 2296 Seismic 3560 | 54 1210 2296 Robot Analysis Total 1 | . 1 . Derelict Logs Recovered 3 | . . 3 Drone Launches . | . . . Drone Recoveries . | . . . Exploration | -11 -10 -10 ------------- Run | Yrd Mat Sub Turns Passed 3639 | 116 1210 2313 Spaces Moved 1852 | 53 597 1202 Core 5 | 5 . . Treads 1711 | . 509 1202 Legs 136 | 48 88 . Wheels . | . . . Hover . | . . . Flight . | . . . Fastest Speed 50 | 50 120 160 Average Speed 163 | 113 154 170 Slowest Speed 240 | 120 240 240 Overloaded Moves . | . . . Propulsion Burnouts . | . . . Robots Hopped . | . . . Potential Cave-ins . | . . . Cave-ins Triggered . | . . . Exploration Rate (%) 52 | 6 95 56 Regions Visited 2 Branch Regions 1 Pre-discovered Areas 2 | . . 2 Known Exits Taken . | . . . Unknown Exits Taken 2 | 1 1 . Scrap Searched 11 | . . 11 Spaces Dug 7 | . . 7 Terrain Destroyed 58 | . 32 26 Melee . | . . . Projectile 26 | . . 26 AOE 32 | . 32 . Terrain Rammed . | . . . Walls Destroyed . | . . . Machines Disabled . | . . . Actions | -11 -10 -10 --------- Run | Yrd Mat Sub Total 2206 | 81 799 1326 Wait 106 | 4 90 12 Move 1850 | 52 596 1202 Hop . | . . . Pick Up 34 | 6 23 5 Fast Attach 19 | 7 10 2 Attach 4 | . . 4 Detach . | . . . Swap 20 | . 10 10 Drop 30 | . 22 8 Fire 136 | 12 46 78 Melee 4 | . . 4 Ram . | . . . Kick . | . . . Crush 3 | . 2 1 Escape Stasis . | . . . Rewire . | . . . Trap . | . . . Miscellaneous . | . . . Route ------- -11/Scrapyard -10/Materials (discovered 5 exits: [*Mat x3] / [*Min] / *Sub) -10/Subcaves (discovered 3 exits: *Mat x2 / Rec) History --------- Turn | Location | Event 7 | -11/Scrapyard | Discovered new exit (range 15) 117 | -11/Scrapyard | Entered Materials 323 | -10/Materials | Build established: Mutant 492 | -10/Materials | Central database locked down 600 | -10/Materials | Discovered new exit (range 3) 783 | -10/Materials | Discovered new exit (range 15) 1119 | -10/Materials | Discovered new exit (range 13) 1219 | -10/Materials | Discovered new exit (range 8) 1317 | -10/Materials | Discovered new exit (range 7) 1327 | -10/Materials | Entered Subcaves 1328 | -10/Subcaves | Approached by a straggling Scientist 1348 | -10/Subcaves | Learned 2 Materials zone layouts 1411 | -10/Subcaves | Learned location of Mines (-9) 1552 | -10/Subcaves | Disturbed a concealed Subdweller 1816 | -10/Subcaves | A swath of the cavern ceiling suddenly collapsed 1957 | -10/Subcaves | Identified exit to Materials 2187 | -10/Subcaves | Core integrity fell below 50% 2283 | -10/Subcaves | A swath of the cavern ceiling suddenly collapsed 2409 | -10/Subcaves | Visited Clippyterm 2414 | -10/Subcaves | Learned 40 Factory zone layouts 2414 | -10/Subcaves | Identified exit to Recycling 2538 | -10/Subcaves | Core integrity fell below 20% 2863 | -10/Subcaves | Learned location of Zion (-7) 2863 | -10/Subcaves | Met a Zionite searching for "candidates" 3039 | -10/Subcaves | Shifting Twisted Machinery released Scrap Shield 3046 | -10/Subcaves | Shifting Twisted Machinery released Battle Cannon 3047 | -10/Subcaves | Discovered exit to Materials (range 7) 3233 | -10/Subcaves | Visited 4L-MR0's lab 3254 | -10/Subcaves | Found Arachnoskeleton 3495 | -10/Subcaves | Lost 3 allies 3640 | -10/Subcaves | Destroyed by S-10 Pest with Light Assault Rifle Last Messages --------------- 03518_ System corrupted: Matter fused (-8). 03551_ System corrupted: FCS attempts to trigger Slug Cannon. 03551_ System corrupted: Slug Cannon misfires. 03600_ System corrupted: Component data lost. 03631_ S-10 Pest destroyed. 03631_ S-10 Pest suffers critical hit (Destroy). 03631_ Destroyed Flight Unit. 03631_ S-10 Pest knocked back. 03634_ Destroyed Flight Unit. 03634_ S-10 Pest knocked back. 03637_ Lgt. Assault Rifle fries itself beyond repair. 03637_ S-10 Pest destroyed. 03637_ S-10 Pest suffers critical hit (Destroy). 03637_ Destroyed Flight Unit. 03640_ Lgt. Ion Engine fries itself beyond repair. 03640_ Destroyed Lgt. Ion Engine. 03640_ Slug penetrates Wall. Map ----- +----------------------------------------------------+ | ###??# ##?????????????????????? | | ##?# #?????????????????????? | | ## #?# ## #?????????????????????? | | #### ### #### ##?????????????????????? | | #??## ###### ####??????????????????????? | | # #???# #???## ##???????????????????????? | | ###???## ###?# ##??????????????????????? | | ###????## ### #??????????????????????? | | ###???## ## ## ##?????????????????????? | | ##???### ### ##????????????????????? | | # #?????###?## ##???????????????????? | | ## #??????????## ## #???????????????????? | | ?# ##??????????# ## ### #?????? ????????????? | | ?## ##?????????######## #????? ???????????? | | ?## #??????????????## ##??## ??????????? | | ## ##??????????????# ###### ?????????? | | # ##?????##??????## ## ?????????? | | # ##???## ###??# ?????????? | | # ##?## # #?## #???????????? | | #? ??# #????????????? | | # ##? #? ?## ### #????????????? | | #########?# #??# ### ##?????????????????? | | ##??????# #??## # ##??????????????????? | | ##??### ##?# ##???????????????????? | | #??? ### % ####????????????????????? | | #??? ### ## @#??????????????????????? | | ##???# ????#### %##??????????????????????? | | ###### #????????#s% #???????????????????????? | | #?????????## "#??????????????????????? | | # ##??????????## "#?????????????????????? | | ### ##???????????# &%&????????????????????? | | #?### ##?#####????## ???????????????????? | | ???### ### #??????# ??????????????????? | | ?????## #???????# %##?????????????????? | | ??????## #######??? ??????????????????? | | ##???????# ## #??? ?????????????????? | | ?????????# #????? ????????????????? | | ?????????# #????? "#???????????????? | | ?????????# ### ##???? " "#???????????????? | | ???####??## ##?## #?????""""????????????????? | | ??## ##??####?### #????>????????????????????? | | ??# ####???## ###???????????????????????? | | ??# ###?# ##??????????????????????? | | ??## ### ##?????????????????????? | | ???#### ### #?????????????????????? | | ??????## ##?#### ##????????????????????? | | ???????# ##?????# ######???????????????? | | ???????# ##??????# #???????????????? | | ???????## ####???????## ##???????????????? | | ????????######???????????########????????????????? | +----------------------------------------------------+ Best States ------------- Heat Dissipation 39 Energy Generation 10 Energy Capacity 250 Matter Stores 300 Matter Capacity 300 Sight Range 16 Terrain Scan Density 10 Evasion (%) 55 Recoil Reduction 2 Item Schematics ----------------- None Robot Schematics ------------------ None Fabricated ------------ Nothing Repaired ---------- Nothing Alien Tech Used ----------------- None Achievements -------------- None Challenges ------------ None Game ------ Seed MachineScrapFirepult Manual? 0 Play Time 00:24:46 Cumulative 225.4 hours Start 2025.08.18 @ 17:51:23 End 2025.08.18 @ 18:15:53 Sessions 1 Manual Loads 0 Difficulty Rogue Special Mode None Game No. 161 Rogue 161 Adventurer 0 Explorer 0 Win Type - Total 2 Types 2/0/0/0/0/0/0/0/0/0 Lore% 67 Gallery% 64 Achievement% 55 Wizard Run 0 Options --------- Layout 1 ASCII 0 Keyboard 0 Movement Mouse Keybinds 0 Fullscreen 1 Font 32/SmallcapsGlow Map View 50x35 Zoom Use 0% Tactical HUD 1 Map Filters NONE Filters NONE Steam 1 RUN: 12ca47d2-c804-48f8-b09a-5364d7728b17